Cogmind - Beta 14 @@@ ROGUE MODE // 2024.11.16 @ 14:14:21 Player: Cheeseinator Result: Destroyed by G-34 Mercenary with Small Laser Performance ------------- Evolutions (0) 0 Regions Visited (1) 200 Robots Destroyed (12) 60 Value Destroyed (333) 333 Prototype IDs (2) 40 Alien Tech Used (0) 0 Bonus (0) 0 TOTAL SCORE: 633 Bonus ------- None Cogmind --------- Core Integrity 0/250 Matter 242/300 Energy 125/125 System Corruption 0% Temperature Cool (42) Movement Walking (400) Ox4 Location -10/Materials Parts ------- > --- POWER (1) -------- Light Ion Engine > --- PROPULSION (2) --- Aluminum Leg Aluminum Leg > --- UTILITY (2) ------ Huge Storage Unit > --- WEAPON (2) ------- Small Laser Light Assault Rifle > --- INVENTORY (25) --- Light Ion Engine Aluminum Leg Small Storage Unit Particle Gun Light Assault Rifle Peak State ------------ > --- POWER ------------ Light Ion Engine > --- PROPULSION ------- Aluminum Leg Aluminum Leg > --- UTILITY ---------- Small Storage Unit Huge Storage Unit > --- WEAPON ----------- Small Laser Light Assault Rifle > --- INVENTORY -------- Light Ion Engine Aluminum Leg Wheel Wheel Particle Gun Light Assault Rifle [Rating: 7] Favorites ----------- Power Light Ion Engine Engine Light Ion Engine Propulsion Aluminum Leg Leg Aluminum Leg Utility Small Storage Unit Storage Small Storage Unit Weapon Light Assault Rifle Energy Gun Small Laser Ballistic Gun Light Assault Rifle Build | -11 -10 ------- Run | Yrd Mat Slots Evolved . | . . Power . | . . Propulsion . | . . Utility . | . . Weapon . | . . Parts Attached 11 | 6 5 Power 2 | 1 1 Engine 2 | 1 1 Core . | . . Reactor . | . . Propulsion 4 | 2 2 Treads . | . . Leg 4 | 2 2 Wheel . | . . Hover . | . . Flight . | . . Utility 2 | 1 1 Device . | . . Storage 2 | 1 1 Processor . | . . Hackware . | . . Protection . | . . Artifact . | . . Weapon 3 | 2 1 Energy Gun 1 | . 1 Energy Cannon . | . . Ballistic Gun 2 | 2 . Ballistic Cannon . | . . Launcher . | . . Special Weapon . | . . Impact Weapon . | . . Slashing Weapon . | . . Piercing Weapon . | . . Special Melee Weapon . | . . Unidentified Prototypes . | . . Parts Lost 3 | . 3 Power 1 | . 1 Propulsion 1 | . 1 Utility . | . . Weapon 1 | . 1 Highest Loss Streak 3 | . 3 To Critical Strikes . | . . Average Slot Usage (%) 83 | . 83 Engine 13 | . 13 Leg 27 | . 27 Storage 14 | . 14 Energy Gun 11 | . 11 Ballistic Gun 16 | . 16 Peak Build Rating 7 | 6 7 Average Rating 5 | 4 5 On Entrance 3 | . 6 Naked Turns . | . . Heaviest Build 85 | 13 85 Greatest Support 20 | 20 20 Greatest Overweight (x) 4 | . 4 Average Overweight (x) . | . . Largest Inventory Capacity 25 | 8 25 Average Capacity 8 | 7 9 Most Carried 7 | 4 7 Average Carried 4 | 1 5 Final Capacity 25 | 8 25 Final Carried 5 | 4 5 Class Distribution -------------------- 100% | Mutant Dominant Class ---------------- Mutant | -10/Materials Resources | -11 -10 ----------- Run | Yrd Mat Matter Collected 310 | 190 120 Remotely . | . . Salvage Created 301 | . 301 Parts 30 | . 30 Haulers Intercepted . | . . Recyclers Shooed . | . . Parts Field Recycled . | . . Retrieved Matter . | . . Parts Self-Destructed . | . . Prevented . | . . Kills | -11 -10 ------- Run | Yrd Mat Combat Hostiles Destroyed 10 | . 10 Guns 7 | . 7 AOE 3 | . 3 Classes Destroyed 3 | . 3 Watcher 2 | . 2 Swarmer 3 | . 3 Grunt 7 | . 7 Best Kill Streak 5 | . 5 Combat Bots Only 4 | . 4 Max Kills in Single Turn 3 | . 3 Gunslinging . | . . Exploded 3 | . 3 Melee . | . . Uniques/NPCs Destroyed . | . . Combat | -11 -10 -------- Run | Yrd Mat Hostile Shots Fired 56 | . 56 Missed 18 | . 18 Damage Taken 639 | . 639 Core 255 | . 255 Absorbed by Shields . | . . Core Remaining (%) 100 | 100 . Volleys Fired 36 | . 36 Largest 2 | . 2 Hottest 60 | . 60 Shots Fired 66 | . 66 Gun 66 | . 66 Cannon . | . . Launcher . | . . Special . | . . Kinetic 51 | . 51 Thermal 15 | . 15 Explosive . | . . Electromagnetic . | . . Robot Hit Streak 8 | . 8 Robot Miss Streak 4 | . 4 Penetration Max . | . . Secondary Targets 2 | . 2 Max Gunslinging Chain 1 | . 1 Shots Hit Robots 35 | . 35 Core Hits 22 | . 22 Critical Kills . | . . Critical Parts Destroyed . | . . Critical Strikes . | . . Melee Attacks . | . . Impact . | . . Slashing . | . . Piercing . | . . Sneak Attacks . | . . Combat Hostiles . | . . Follow-up Attacks . | . . Damage Inflicted 726 | . 726 Guns 377 | . 377 Cannons . | . . Explosions 347 | . 347 Melee . | . . Ramming 2 | . 2 Kinetic 256 | . 256 Thermal 468 | . 468 Explosive . | . . Electromagnetic . | . . Impact . | . . Slashing . | . . Piercing . | . . Highest Corruption . | . . Average Corruption . | . . Corruption Purged . | . . Corruption Blocked . | . . Overload Shots . | . . Overflow Damage 108 | . 108 Projectiles . | . . Explosions 108 | . 108 Melee . | . . Knockbacks . | . . Impact . | . . Kinetic . | . . Secondary . | . . Self-Inflicted Damage 212 | . 212 Shots 2 | . 2 Rammed . | . . Targets Rammed 2 | . 2 Kicked 2 | . 2 Crushed . | . . Highest Temperature 70 | . 70 Average Temperature 20 | . 20 Received Heat Transfer 198 | . 198 Siege Activations . | . . Robots Corrupted . | . . Combat Hostiles . | . . Parts Fried . | . . Impact Corruptions . | . . Robots Melted . | . . Combat Hostiles . | . . Parts Melted . | . . Heat Transferred 475 | . 475 Parts Sabotaged . | . . Parts Stolen . | . . Parts Stripped . | . . Power Chain Reactions . | . . Alert | -11 -10 ------- Run | Yrd Mat Peak Influence 332 | . 332 Initial . | . . Average 173 | . 208 Maximum Alert Level 1 | . 1 Low Security (%) 62 | 100 54 Level 1 37 | . 45 Level 2 . | . . Level 3 . | . . Level 4 . | . . Level 5 . | . . High Security . | . . Max Security . | . . Squads Dispatched 3 | . 3 Investigation 1 | . 1 Extermination . | . . Reinforcement 2 | . 2 Assault . | . . Garrison . | . . Intercept . | . . Searches Triggered . | . . Construction Impeded . | . . Haulers Reinforced . | . . Active Scanning Responses . | . . Cargo Convoy Interrupts . | . . Stealth | -11 -10 --------- Run | Yrd Mat Distress Signals 2 | . 2 Communications Jammed . | . . Distress Signals . | . . Times Spotted 17 | . 17 Peak Tracking Total 4 | . 4 Tactical Retreats . | . . Traps | -11 -10 ------- Run | Yrd Mat Traps Triggered . | . . Indirectly . | . . Trap Hack Attempts . | . . Triggered . | . . Disarmed . | . . Reprogrammed . | . . Reused . | . . Traps Extracted . | . . Installed . | . . Triggered . | . . Machines | -11 -10 ---------- Run | Yrd Mat Machines Disabled 2 | . 2 Max in Single Turn 2 | . 2 Machines Repaired . | . . Machines Dismantled . | . . Machines Sabotaged . | . . Overloaded Fab Kills . | . . Hacking | -11 -10 --------- Run | Yrd Mat Machines Accessed 2 | . 2 Terminals 1 | . 1 Fabricators . | . . Repair Stations . | . . Recycling Units 1 | . 1 Scanalyzers . | . . Garrison Access . | . . Total Hacks 7 | . 7 Successful 7 | . 7 Failed . | . . Catastrophic . | . . Database Lockouts . | . . Manual 4 | . 4 Terminals 5 | . 5 Fabricators . | . . Repair Stations . | . . Recycling Units 2 | . 2 Scanalyzers . | . . Garrison Access . | . . Terminal Hacks 4 | . 4 Record 1 | . 1 Prototype ID Bank 1 | . 1 Alert Level 1 | . 1 Registered Components 1 | . 1 Fabricator Hacks . | . . Repair Station Hacks . | . . Recycling Unit Hacks 1 | . 1 Report Inventory 1 | . 1 Scanalyzer . | . . Garrison Access Hacks . | . . Unauthorized Hacks 2 | . 2 Terminals 1 | . 1 Botnet 1 | . 1 Fabricators . | . . Repair Stations . | . . Recycling Units 1 | . 1 Monitor 1 | . 1 Scanalyzers . | . . Garrison Access . | . . Data Cores Recovered . | . . Used . | . . Hacking Detections 1 | . 1 Full Trace Events 1 | . 1 Feedback Events . | . . Feedback Blocked . | . . Robot Schematics Acquired . | . . Robots Built . | . . Authchips . | . . Time . | . . Total Robot Build Rating . | . . Part Schematics Acquired . | . . Parts Built . | . . Authchips . | . . Time . | . . Total Part Build Rating . | . . Parts Repaired . | . . Time . | . . Parts Recycled . | . . Recycled Matter . | . . Retrieved Matter . | . . Retrieved Components . | . . Parts Scanalyzed . | . . Part Schematics Acquired . | . . Parts Damaged . | . . Bothacking | -11 -10 ------------ Run | Yrd Mat Used RIF Installer . | . . Robots Hacked . | . . Non-combat . | . . Combat . | . . Robot Hacks Applied . | . . Relay Couplers Released . | . . Fabnet Peak Effective % . | . . Robots Rewired . | . . Allies Hacked . | . . Hacks Repelled . | . . Allies | -11 -10 -------- Run | Yrd Mat Total Allies . | . . Largest Group . | . . Highest-Rated Group . | . . Highest-Rated Ally . | . . Total Orders . | . . Ally Attacks . | . . Total Damage . | . . Kills . | . . Allies Corrupted . | . . Allies Melted . | . . Intel | -11 -10 ------- Run | Yrd Mat Robot Analysis Total . | . . Derelict Logs Recovered . | . . Drone Launches . | . . Drone Recoveries . | . . Exploration | -11 -10 ------------- Run | Yrd Mat Turns Passed 555 | 93 462 Spaces Moved 344 | 79 265 Core 20 | 20 . Treads . | . . Legs 324 | 59 265 Wheels . | . . Hover . | . . Flight . | . . Fastest Speed 50 | 50 120 Average Speed 121 | 102 127 Slowest Speed 400 | 120 400 Overloaded Moves . | . . Propulsion Burnouts . | . . Robots Hopped . | . . Cave-ins Triggered . | . . Exploration Rate (%) 26 | 4 49 Regions Visited 1 Branch Regions . Pre-discovered Areas . | . . Known Exits Taken . | . . Unknown Exits Taken 1 | 1 . Scrap Searched . | . . Spaces Dug . | . . Terrain Destroyed 22 | . 22 Melee . | . . Projectile . | . . AOE 22 | . 22 Terrain Rammed . | . . Walls Destroyed . | . . Machines Disabled . | . . Actions | -11 -10 --------- Run | Yrd Mat Total 420 | 88 332 Wait 17 | . 17 Move 343 | 78 265 Hop . | . . Pick Up 7 | 4 3 Fast Attach 9 | 6 3 Attach 1 | . 1 Detach 1 | . 1 Swap 1 | . 1 Drop 3 | . 3 Fire 36 | . 36 Melee . | . . Ram . | . . Kick 2 | . 2 Crush . | . . Escape Stasis . | . . Rewire . | . . Trap . | . . Miscellaneous . | . . Route ------- -11/Scrapyard -10/Materials (discovered 2 exits: [*Mat] / [*Min]) History --------- Turn | Location | Event 9 | -11/Scrapyard | Discovered new exit (range 16) 94 | -11/Scrapyard | Entered Materials 178 | -10/Materials | Core integrity fell below 50% 178 | -10/Materials | Core integrity fell below 20% 208 | -10/Materials | Lost 3 parts (1p1n1w) 323 | -10/Materials | Build established: Mutant 370 | -10/Materials | Discovered new exit (range 15) 513 | -10/Materials | Discovered new exit (range 8) 556 | -10/Materials | Destroyed by G-34 Mercenary with Small Laser Last Messages --------------- >>Trojan(Botnet) Trojan loaded successfully. Testing... Terminal linked with 0 systems. Awaiting botnet instructions. 00395_ >> MONITOR: Recycling Unit M002 accepting Sml. Laser (32%). 00398_ >> MONITOR: Recycling Unit M002 accepting Lgt. Assault Rifle (63%). 00401_ >> MONITOR: Recycling Unit M002 accepting Lgt. Assault Rifle (21%). 00404_ >> MONITOR: Recycling Unit M002 accepting Ion Engine (96%). 00407_ K-01 Serf cleans the Machine. 00446_ K-01 Serf collects debris. 00450_ Kicked K-01 Serf. 00476_ >> MONITOR: Recycling Unit M002 accepting Heat Sink (76%). 00479_ >> MONITOR: Recycling Unit M002 accepting Aluminum Leg (71%). 00482_ >> MONITOR: Recycling Unit M002 accepting Visual Processing Unit (86%). 00485_ >> MONITOR: Recycling Unit M002 accepting Heat Sink (93%). 00513_ EXIT=FOUND 00522_ Acquired Huge Storage Unit. 00528_ Dropped Wheel. Map ----- +----------------------------------------------------+ | | | | | | | | | | | | | | | | | ??##????????????????????????????????? | | ?? ????????????????????????????????? | | ?? ????????????????????????????????? | | ?? ??##########???????????????????? | | ?? "??# #???????????????????? | | ?? ??#! #?###########???????? | | ?? "??# """ #?# #???????? | | ?? ??# """""#?# #???????? | | ###+#### """""#?# #???????? | | + """""#?# #???????? | | ### """ #?# ! #???#???? | | #?# #?# #?? #???? | | ## #?# #?# #?< #???? | | ## #######+####?# # #???? | | # #??# =##########+### #???? | | # #??# g #???? | | + #??# #???? | | # #??# ! a @ #???? | | # #??# ###+######/#######???? | | ## ###########?????# #?????? | | ## # #?????#* """ #?????? | | ## + #?????# """ #?????? | | ?# # #?????# """ #?????? | | ## # #?????# == #?????? | | ^ ###########?????# !! #?????? | | ##########??????# !!! #?????? | | !! # """ #??????# !! #?????? | | !! # """"" #??????# #?????? | | ! # """"" #??????###"T"####?????? | | # """"" ###??????#"""#????????? | | / """ ""#??????#####????????? | | # ! T"#???????????????????? | | ###### ""#???????????????????? | | #????# ###???????????????????? | | "????# #?????????????????????? | | ????##########?????????????????????? | | ???????????????????????????????????? | | ???????????????????????????????????? | | ???????????????????????????????????? | | ???????????????????????????????????? | | ""??????????????????????????????????? | | ##??????????????????????????????????? | +----------------------------------------------------+ Best States ------------- Heat Dissipation 25 Energy Generation 10 Energy Capacity 250 Matter Stores 254 Matter Capacity 300 Sight Range 16 Terrain Scan Density 10 Evasion (%) 55 Item Schematics ----------------- None Robot Schematics ------------------ None Fabricated ------------ Nothing Alien Tech Used ----------------- None Achievements -------------- None Challenges ------------ None Game ------ Seed ElectronFactoryPurifier Manual? 0 Play Time 00:07:50 Cumulative 17.9 hours Start 2024.11.16 @ 14:09:56 End 2024.11.16 @ 14:14:21 Sessions 1 Manual Loads 0 Difficulty Rogue Special Mode None Game No. 23 Rogue 6 Adventurer 16 Explorer 1 Win Type - Total 0 Types 0/0/0/0/0/0/0/0/0 Lore% 9 Gallery% 24 Achievement% 23 Wizard Run 0 Options --------- Layout 0 ASCII 0 Keyboard 1 Movement Numpad Keybinds 0 Fullscreen 2 Font 18/SmallcapsGlow Map View 76x50 Zoom Use 0% Tactical HUD 1 Map Filters NONE Filters NONE Steam 1 RUN: 3e320f20-0937-47af-9ec6-74fe308f3025